bitfinex/quotes_ETHUSD_20240715
["timestamp","ask_amount","ask_price","bid_price","bid_amount"]
[1721063695478,5.4739,3401.9,3401.4,2.93988]
[1721063695691,5.4739,3401.9,3401.0,2.94027]
[1721063695855,1.43649,3401.8,3401.0,2.94027]
[1721063696062,4.43649,3401.8,3401.0,2.94027]
[1721063696377,1.2818766,3401.7,3401.0,2.94027]
[1721063696584,4.2818766,3401.7,3400.8,2.94045]
[1721063696752,1.2818766,3401.6,3400.9,2.94038]
[1721063696951,2.10110326,3401.6,3400.9,2.94038]
[1721063697272,0.81922666,3401.6,3400.5,2.94067]
[1721063697473,1.2818444,3401.5,3401.1,2.94022]
[1721063697794,3.0,3401.7,3401.1,2.94022]
[1721063698082,1.28183359,3401.6,3401.1,2.94022]
[1721063698293,4.43649,3401.8,3400.9,2.94038]
[1721063698294,3.0,3401.7,3400.9,2.94038]
[1721063698446,1.28183471,3401.6,3400.9,2.94038]
[1721063698643,3.0,3401.7,3400.9,2.94038]
[1721063698847,1.245339,3401.7,3400.9,2.94038]
[1721063699072,4.245339,3401.7,3400.5,2.94068]
[1721063699283,3.0,3401.7,3401.2,2.94012]
[1721063699457,3.55,3401.8,3401.2,2.94012]
[1721063700956,3.55,3401.8,3400.2,3.85570112]
[1721063701169,3.55,3401.8,3400.5,2.94073]
[1721063701170,2.543,3401.5,3400.5,2.94073]
[1721063701384,3.55,3401.4,3400.6,2.94059]
[1721063701694,3.55,3401.4,3400.8,2.94047]
[1721063701917,0.55,3401.4,3400.8,2.94047]
[1721063702045,0.55,3401.6,3400.8,2.94047]
[1721063702246,0.440669,3401.5,3400.6,2.94065]
[1721063702455,0.55,3401.4,3400.6,2.94065]
[1721063702751,2.543,3401.1,3400.4,2.94082]
[1721063703673,2.543,3401.1,3400.1,2.94108]
[1721063703880,4.03786,3401.0,3400.0,2.94115]
[1721063704412,4.03786,3401.0,3400.0,2.94112]
[1721063705487,4.03786,3401.0,3399.9,2.94125]
[1721063705914,4.03786,3401.0,3400.3,2.94083]
[1721063706116,3.48786,3401.0,3400.3,2.94083]
[1721063706619,3.48786,3401.0,3400.4,2.94082]
[1721063707321,3.0,3401.0,3400.5,2.94071]
[1721063707617,3.0,3401.2,3400.6,2.94063]
[1721063707789,2.3356,3401.3,3400.7,2.94055]
[1721063708387,2.543,3401.1,3400.0,2.3255]
[1721063708726,3.33086,3401.1,3400.5,2.94072]
[1721063709017,3.33086,3401.1,3400.2,2.94099]
[1721063709379,3.33086,3401.1,3400.3,2.94091]
[1721063709380,0.55,3401.0,3400.3,2.94091]
[1721063709799,0.55,3401.0,3399.5,3.89638204]
[1721063709998,2.543,3400.4,3399.7,2.9414]
[1721063710212,2.543,3400.4,3399.4,2.94167]
[1721063710213,0.2543,3400.3,3399.4,2.94167]
[1721063710375,0.2543,3400.3,3399.6,2.94149]
[1721063710576,3.2543,3400.3,3399.6,2.94149]
[1721063710893,3.2543,3400.3,3399.5,2.9416]
[1721063711095,0.55,3400.2,3399.5,2.9416]
[1721063711304,0.55,3400.2,3399.6,2.94151]
[1721063712301,1.18473,3400.2,3399.6,2.94151]
[1721063713302,1.18473,3400.2,3399.4,2.94164]
[1721063713513,1.18473,3400.2,3399.5,2.9416]
[1721063713724,1.18473,3400.2,3399.3,2.94175]
[1721063713889,2.461,3399.9,3399.3,2.94175]
[1721063714096,2.461,3399.9,3399.4,2.94165]
[1721063714607,2.461,3399.9,3399.5,2.9416]
[1721063714915,2.461,3399.9,3399.3,5.88347]
[1721063715100,3.079873,3399.9,3399.0,2.94196]
[1721063715304,3.079873,3399.9,3399.2,2.94186]
[1721063715886,2.461,3399.9,3399.2,2.94186]
[1721063716128,0.55,3400.2,3399.5,2.94153]
[1721063716302,5.0081,3400.4,3399.5,2.94153]
[1721063716605,3.55,3400.3,3399.5,2.94153]
[1721063716817,3.55,3400.3,3399.6,2.9415]
[1721063717152,4.40581,3400.3,3399.6,2.9415]
[1721063717995,2.2526,3400.9,3399.8,2.9413]
[1721063718327,2.2526,3401.4,3400.4,2.94074]
[1721063718645,2.2526,3401.4,3400.5,2.94073]
[1721063718791,2.543,3401.1,3400.5,2.94073]
[1721063718989,2.543,3401.5,3400.8,2.94048]
[1721063719192,4.7956,3401.9,3401.2,2.94005]
[1721063719593,4.7956,3401.9,3401.3,2.93998]
[1721063719797,2.543,3401.9,3401.3,2.93998]
[1721063720419,3.39,3402.3,3401.4,2.93995]
[1721063720600,3.77511019,3402.3,3401.7,2.93963]
[1721063720804,3.77511019,3402.3,3401.5,2.93982]
[1721063720805,0.38511019,3402.3,3401.8,2.93961]
[1721063721017,2.3139,3402.4,3401.8,2.93961]
[1721063721232,2.3139,3402.4,3401.5,2.93979]
[1721063721619,2.3139,3402.4,3400.6,3.0]
[1721063721620,2.3139,3402.4,3401.8,2.93955]
[1721063722019,3.39,3402.3,3400.6,3.0]
[1721063722341,3.39,3402.3,3401.5,2.93981]
[1721063722640,0.57039,3402.2,3401.5,2.93981]
[1721063723144,0.55,3402.1,3401.2,2.94012]
[1721063723739,0.55,3402.1,3401.3,2.94004]
[1721063724040,0.55,3402.1,3401.4,2.93988]
[1721063724638,0.55,3402.1,3400.7,2.9405]
[1721063724838,3.39,3401.8,3400.6,2.94065]
[1721063724995,3.39,3401.8,3400.9,2.94039]
[1721063724996,0.55,3401.7,3400.9,2.94039]
[1721063725192,0.55,3401.7,3400.8,2.94047]
[1721063725400,0.55,3401.7,3400.2,2.4856]
[1721063725401,0.55,3401.7,3401.1,2.94021]
[1721063725894,0.55,3401.9,3401.1,2.94021]
[1721063726095,1.0681229,3401.9,3401.1,2.94021]
[1721063726327,3.57039,3402.2,3401.4,2.93989]
[1721063726597,0.55,3402.1,3401.5,2.93987]
[1721063727393,0.55,3402.1,3401.2,2.94011]
[1721063728333,0.55,3402.1,3401.4,2.93991]
[1721063728583,0.55,3402.1,3401.4,2.93996]
[1721063729199,1.532429,3402.1,3401.0,2.94025]
[1721063729427,1.532429,3402.1,3400.9,2.94032]
[1721063729428,1.532429,3402.1,3401.2,2.94011]
[1721063730439,1.532429,3402.1,3400.7,2.9405]
[1721063730440,3.39,3401.8,3400.7,2.9405]
[1721063730645,3.55,3401.7,3400.8,2.94047]
[1721063731927,3.55,3401.7,3400.2,2.94099]
[1721063732250,1.0038,3401.6,3400.5,2.94073]
[1721063732537,0.55,3401.5,3400.5,2.94073]
[1721063732741,0.55,3401.5,3400.6,2.94063]
[1721063733439,0.55,3401.5,3400.5,2.94073]
[1721063733962,2.3802,3401.4,3400.3,2.94091]
[1721063734251,4.6432,3401.3,3400.3,2.94091]
[1721063734435,4.6432,3401.3,3399.7,2.2967]
[1721063734436,4.6432,3401.3,3400.4,2.94082]
[1721063734637,3.0,3401.2,3400.7,2.94056]
[1721063735116,3.55,3401.3,3400.7,2.94056]
[1721063736030,3.55,3401.3,3400.8,2.94047]
[1721063736616,3.39,3401.8,3400.9,2.94037]
[1721063736617,3.0,3401.7,3400.9,2.94037]
[1721063736937,3.0,3401.7,3401.1,2.94021]
[1721063737239,3.88409,3401.7,3401.1,2.94021]
[1721063737601,2.4509,3401.9,3401.2,2.94009]
[1721063737807,5.681,3402.3,3401.5,2.93987]
[1721063738643,5.681,3402.3,3401.8,2.93961]
[1721063739050,3.39,3402.3,3401.8,2.93961]
[1721063739607,3.39,3402.8,3402.0,2.93939]
[1721063739827,0.58361,3402.7,3402.0,2.93939]
[1721063740181,0.58361,3402.7,3401.6,2.93972]
[1721063740182,3.58361,3402.7,3401.6,2.93972]
[1721063740473,2.542,3402.2,3401.6,2.93972]
[1721063740625,2.542,3402.2,3401.7,2.93969]
[1721063741276,2.542,3402.2,3401.6,2.93972]
[1721063741484,2.7962,3402.2,3401.6,2.93972]
[1721063742487,2.7962,3402.2,3401.4,2.93994]
[1721063743159,2.7962,3402.2,3401.2,2.94012]
[1721063743348,2.542,3402.6,3402.0,2.93943]
[1721063743550,3.55,3402.5,3402.0,2.93943]
[1721063743965,3.55,3402.5,3401.5,2.93979]
[1721063744261,3.55,3402.5,3401.6,2.93971]
[1721063744467,2.4156,3402.3,3400.7,2.2764]
[1721063744676,2.542,3401.8,3401.0,2.94025]
[1721063744872,2.542,3401.8,3400.9,2.94038]
[1721063745035,2.542,3401.8,3400.7,2.94056]
[1721063745036,3.55,3401.7,3400.7,2.94056]
[1721063745241,4.8875,3401.4,3400.7,2.94056]
[1721063745541,5.73125,3401.4,3400.8,2.94044]
[1721063745853,5.73125,3401.4,3400.9,2.94039]
[1721063745854,4.8875,3401.4,3400.9,2.94039]
[1721063746244,2.3455,3401.4,3400.9,2.94039]
[1721063748056,3.55,3401.7,3400.9,2.94039]
[1721063748259,0.55,3401.7,3400.9,2.94039]
[1721063748551,0.55,3401.7,3401.1,2.94021]
[1721063748781,0.55,3401.7,3401.2,2.9401]
[1721063749241,3.55,3401.8,3401.2,2.9401]
[1721063749444,3.098,3402.3,3400.6,5.27601]
[1721063749445,2.461,3402.5,3401.5,2.93987]
[1721063749755,2.542,3402.4,3401.5,2.93987]
[1721063750843,3.0,3402.3,3401.5,2.93987]
[1721063751045,0.55,3402.2,3401.5,2.93987]
[1721063751694,3.0,3402.3,3401.2,2.94006]
[1721063751983,3.0,3402.3,3402.0,2.9394]
[1721063752144,3.0,3402.3,3402.1,2.93935]
[1721063752346,3.0,3402.7,3402.1,2.93935]
[1721063752540,0.5542,3402.6,3402.1,2.93935]
[1721063752844,2.542,3402.8,3402.1,2.93935]
[1721063752845,2.542,3402.8,3402.3,2.93915]
[1721063753198,1.84268109,3403.6,3402.5,2.93894]
[1721063753199,2.542,3403.2,3402.5,2.93894]
[1721063753547,2.542,3403.2,3402.3,2.93915]
[1721063753743,2.542,3402.8,3401.8,2.93957]
[1721063754085,2.542,3402.8,3402.1,2.93935]
[1721063754086,2.2731,3402.7,3402.1,2.93935]
[1721063754305,0.48151,3402.6,3401.9,2.93947]
[1721063754439,0.48151,3402.6,3402.0,2.93942]
[1721063754847,0.48151,3402.6,3402.1,2.93934]
[1721063755051,0.48151,3402.6,3401.9,2.93946]
[1721063755287,0.48151,3402.6,3402.0,2.93942]
[1721063755794,0.829661,3402.5,3401.9,2.93946]
[1721063756677,0.829661,3402.5,3402.0,2.93939]
[1721063756890,0.829661,3402.5,3402.1,2.9393]
[1721063757059,5.2731,3402.7,3402.1,2.9393]
[1721063757264,0.55,3402.6,3402.1,2.9393]
[1721063757468,3.0,3402.7,3402.4,2.93909]
[1721063758793,3.0,3402.7,3402.3,2.93918]
[1721063759690,3.0,3402.7,3402.5,2.93895]
[1721063759853,2.542,3403.2,3402.5,2.93895]
[1721063760195,3.8042,3403.1,3402.3,2.93918]
[1721063760399,3.8042,3403.1,3402.1,2.93934]
[1721063760603,3.8042,3403.1,3402.2,2.93926]
[1721063761890,3.8042,3403.1,3401.5,5.26872]
[1721063761891,2.3997,3403.0,3401.5,2.3289]
[1721063762054,0.55,3402.9,3401.9,2.93947]
[1721063762255,0.67539,3402.8,3401.5,2.3289]
[1721063762473,3.2542,3403.1,3402.4,2.93909]
[1721063762911,0.55,3403.0,3402.4,2.93909]
[1721063763125,3.0,3403.1,3402.6,2.93884]
[1721063763328,2.3017,3403.5,3401.5,2.3289]
[1721063763329,2.3017,3403.5,3402.4,2.93903]
[1721063763653,2.3017,3403.5,3402.5,2.93901]
[1721063763798,2.3017,3403.5,3402.6,2.93886]
[1721063763799,1.387969,3403.4,3402.6,2.93886]
[1721063763971,4.387969,3403.4,3402.6,2.93886]
[1721063764174,4.387969,3403.4,3402.7,2.93882]
[1721063764621,4.387969,3403.4,3402.8,2.93872]
[1721063764801,3.0,3403.4,3402.8,2.93872]
[1721063765009,3.0,3403.6,3402.8,2.93872]
[1721063765375,3.0,3403.6,3402.9,2.93866]
[1721063765785,3.0,3403.6,3403.1,2.93841]
[1721063766084,5.3162,3404.0,3403.1,2.93841]
[1721063766432,5.3162,3404.0,3402.3,5.38611]
[1721063766433,2.3162,3404.4,3403.7,2.93795]
[1721063766709,2.3162,3404.4,3403.2,0.0587628]
[1721063766710,2.80202,3404.4,3403.9,2.9378]
[1721063767091,2.4082,3405.1,3403.3,2.93827]
[1721063767286,2.4082,3405.1,3404.1,2.93754]
[1721063767477,2.542,3404.9,3404.1,2.93754]
[1721063767678,2.542,3404.9,3403.3,2.93827]
[1721063767679,2.542,3404.9,3403.9,2.93773]
[1721063767988,2.542,3404.9,3404.0,2.9377]
[1721063768302,0.49502,3404.8,3403.8,2.93783]
[1721063768500,0.49502,3404.8,3403.9,2.93773]
[1721063768821,0.49502,3404.8,3403.3,2.93827]
[1721063768822,3.49502,3404.8,3404.0,2.93771]
[1721063769119,0.49502,3404.8,3404.0,2.93771]
[1721063769296,0.55,3404.7,3404.0,2.93771]
[1721063769703,0.908702,3404.7,3403.6,2.93805]
[1721063770076,0.908702,3404.7,3403.7,2.93797]
[1721063771425,0.908702,3404.7,3403.8,2.93788]
[1721063772116,0.908702,3404.7,3404.0,2.93771]
[1721063772426,0.908702,3404.7,3404.1,2.9376]
[1721063772918,0.55,3404.7,3404.1,2.9376]
[1721063773523,0.55,3404.7,3404.0,2.93771]
[1721063773816,0.55,3404.7,3404.1,2.93763]
[1721063774617,0.55,3404.7,3404.2,2.93753]
[1721063775832,2.4082,3405.1,3404.3,2.93742]
[1721063775979,2.4446,3405.7,3405.0,2.93684]
[1721063776323,0.24446,3405.6,3405.0,2.93684]
[1721063776476,0.24446,3405.6,3404.0,5.32266]
[1721063776682,2.542,3405.5,3404.0,5.32266]
[1721063777316,2.542,3405.5,3404.6,2.93718]
[1721063777317,3.0,3405.4,3404.6,2.93718]
[1721063777496,0.55,3405.3,3404.6,2.93718]
[1721063777817,0.6092,3405.2,3404.6,2.93718]
[1721063778020,0.6092,3405.2,3404.0,5.32266]
[1721063778021,3.0,3405.4,3404.7,2.88711]
[1721063778328,3.24446,3405.6,3404.7,2.88711]
[1721063778618,2.542,3406.8,3404.0,5.32266]
[1721063778619,0.55,3405.5,3405.1,2.9367]
[1721063778916,2.542,3406.2,3405.1,2.9367]
[1721063778917,2.3274,3406.1,3405.1,2.9367]
[1721063779082,0.55,3406.0,3405.1,2.9367]
[1721063779281,2.3274,3406.1,3405.1,5.87342]
[1721063779512,0.48694,3406.0,3405.1,2.93669]
[1721063779817,0.48694,3406.0,3405.3,2.93654]
[1721063780032,0.48694,3406.0,3405.4,2.93649]
[1721063780323,3.48694,3406.0,3405.4,2.93649]
[1721063780698,2.3274,3406.1,3405.3,2.93654]
[1721063780699,5.4069,3406.7,3405.5,2.93641]
[1721063781038,2.542,3406.6,3405.8,2.93615]
[1721063781236,0.46050761,3406.8,3406.0,2.93598]
[1721063781424,2.542,3407.0,3406.0,2.93598]
[1721063782009,3.0,3406.9,3406.0,2.93598]
[1721063782333,1.09296,3406.8,3406.0,2.93598]
[1721063782702,1.09296,3406.8,3405.6,2.2869]
[1721063782703,1.09296,3406.8,3406.1,2.93588]
[1721063782902,2.542,3406.6,3405.2,2.93662]
[1721063783100,2.542,3406.2,3405.4,2.93645]
[1721063783801,2.542,3406.2,3405.5,2.93636]
[1721063784001,1.03879,3406.1,3405.5,2.93636]
[1721063784233,1.03879,3406.1,3405.3,2.93658]
[1721063784234,2.542,3406.2,3405.7,2.93623]
[1721063784432,2.542,3406.2,3405.8,2.93615]
[1721063784737,2.542,3406.2,3405.6,2.93633]
[1721063785404,2.542,3406.6,3405.8,2.9361]
[1721063785605,0.55,3406.5,3405.8,2.9361]
[1721063785910,0.3092,3406.4,3405.6,2.93633]
[1721063786118,0.3092,3406.4,3405.4,2.93649]
[1721063786320,2.542,3406.2,3405.4,2.93649]
[1721063786545,0.55,3406.1,3405.6,2.93632]
[1721063786709,2.542,3406.2,3405.8,2.93616]
[1721063787023,2.542,3406.6,3405.9,2.93603]
[1721063787220,0.363496,3406.5,3405.9,2.93603]
[1721063787619,3.363496,3406.5,3405.9,2.93603]
[1721063788319,2.542,3406.6,3406.1,2.93585]
[1721063788526,2.542,3407.1,3406.1,2.93585]
[1721063788740,0.55,3406.8,3406.1,2.93585]
[1721063788936,0.55,3407.0,3406.1,2.93585]
[1721063789256,0.55,3407.0,3406.3,2.93571]
[1721063789456,0.3092,3406.9,3406.3,2.93571]
[1721063789825,0.3092,3406.9,3406.1,2.93589]
[1721063790048,0.3092,3406.9,3406.2,2.93578]
[1721063790350,0.3092,3406.9,3406.3,2.93572]
[1721063790743,3.092,3407.0,3406.3,2.93572]
[1721063791568,3.092,3407.0,3405.8,2.2976]
[1721063791569,2.542,3407.0,3405.8,2.2976]
[1721063791716,0.0071889,3406.6,3406.0,2.93598]
[1721063791912,0.0071889,3406.6,3406.5,2.93556]
[1721063792146,0.0071889,3406.6,3406.2,2.93582]
[1721063793743,0.0071889,3406.6,3406.4,2.93563]
[1721063794454,0.0071889,3406.6,3406.5,2.93556]
[1721063794897,0.0071889,3406.6,3406.4,2.93564]
[1721063795189,0.0071889,3406.6,3406.5,2.93556]
[1721063797128,2.542,3407.0,3406.5,2.9283711]
[1721063797330,3.8262,3407.0,3405.8,2.2976]
[1721063797571,3.8262,3407.0,3406.2,2.93575]
[1721063797959,3.8262,3407.0,3406.2,2.93582]
[1721063798338,3.8262,3407.0,3406.4,2.93563]
[1721063799451,7.3,3407.3,3406.6,2.9354]
[1721063799673,7.3,3407.3,3406.8,2.93524]
[1721063799990,7.3,3407.3,3406.9,2.93521]
[1721063801049,7.3,3407.3,3406.8,2.93524]
[1721063801782,7.3,3407.3,3407.0,2.93509]
[1721063802839,7.3,3407.3,3406.8,2.93523]
[1721063803678,8.03,3407.3,3406.4,2.93561]
[1721063803895,10.572,3407.3,3406.5,2.93554]
[1721063804103,12.8481,3407.3,3406.5,2.93554]
[1721063804260,12.8481,3407.3,3406.2,2.93578]
[1721063804469,12.8481,3407.3,3406.3,2.93571]
[1721063804796,1.28481,3407.2,3406.3,5.87138]
[1721063805008,1.28481,3407.2,3406.3,2.93567]
[1721063805680,2.542,3406.9,3406.1,2.93589]
[1721063805891,2.542,3406.9,3405.9,2.93605]
[1721063806070,2.542,3406.9,3406.1,2.93585]
[1721063806278,2.924681,3406.9,3406.1,2.93585]
[1721063806506,2.924681,3406.9,3405.7,2.2897]
[1721063806809,0.55,3406.8,3405.9,2.936]
[1721063807389,0.55,3406.8,3405.8,2.93616]
[1721063807701,0.3474681,3406.7,3405.9,2.93607]
[1721063809719,2.924681,3406.9,3406.1,2.93583]
[1721063811017,2.924681,3406.9,3405.9,2.93607]
[1721063811580,2.924681,3406.9,3406.1,2.9359]
[1721063812086,0.55,3406.8,3405.8,2.93616]
[1721063812287,0.3474681,3406.7,3405.8,2.93616]
[1721063813419,2.542,3406.5,3405.4,2.93644]
[1721063813629,2.542,3406.5,3405.5,2.93641]
[1721063813797,2.542,3406.5,3405.7,2.93617]
[1721063814728,2.542,3406.5,3405.1,5.20381]
[1721063814729,2.542,3407.1,3406.0,2.93598]
[1721063814920,6.693981,3407.1,3406.0,2.93598]
[1721063815121,3.693981,3407.1,3406.0,2.93598]
[1721063815313,3.0,3407.0,3406.0,2.93598]
[1721063815823,3.0,3407.0,3405.8,2.93615]
[1721063816025,2.4745,3406.6,3405.5,2.93642]
[1721063816228,0.55,3406.5,3405.5,2.93642]
[1721063817890,2.542,3406.3,3405.1,2.93674]
[1721063818097,0.55,3406.2,3405.2,2.93661]
[1721063818302,0.3092,3406.1,3405.2,2.93661]
[1721063818591,0.55,3406.0,3405.2,2.93661]
[1721063819205,2.542,3406.3,3405.4,2.93651]
[1721063819543,0.55,3406.2,3405.4,2.93651]
[1721063820351,0.55,3406.2,3405.2,2.93661]
[1721063820518,0.55,3406.2,3405.3,2.93651]
[1721063820519,1.5892,3406.2,3405.3,2.93651]
[1721063821251,1.5892,3406.2,3405.0,2.93682]
[1721063821550,2.542,3405.9,3405.0,2.93682]
[1721063821908,2.542,3405.9,3404.8,2.93695]
[1721063821909,1.28024181,3405.8,3404.8,2.93695]
[1721063822113,1.83024181,3405.8,3404.9,2.93693]
[1721063822310,2.542,3405.5,3404.7,2.93705]
[1721063822631,2.542,3405.5,3404.2,2.93751]
[1721063822632,1.28040079,3405.4,3404.2,2.93751]
[1721063822933,2.3017,3405.3,3404.7,2.93705]
[1721063823256,2.542,3405.0,3403.8,4.4695146]
[1721063823411,2.542,3404.6,3403.5,2.93813]
[1721063823756,3.71613881,3404.5,3403.3,2.9383]
[1721063823981,1.83075717,3404.4,3403.5,2.93815]
[1721063824183,1.83075717,3404.4,3403.2,2.2511]
[1721063824184,1.28075717,3404.3,3403.2,2.2511]
[1721063824387,8.52801281,3405.3,3404.5,2.93728]
[1721063824690,1.28052255,3405.2,3404.2,2.93749]
[1721063824976,2.542,3404.8,3403.6,2.938]
[1721063825180,3.60042255,3404.7,3403.6,2.938]
[1721063825382,1.83052255,3404.6,3403.7,2.93791]
[1721063825592,2.542,3404.4,3403.2,5.18948]
[1721063825775,0.55,3404.6,3403.5,2.93809]
[1721063825956,2.542,3403.6,3402.5,0.6053986]
[1721063826157,2.542,3403.6,3402.6,2.93887]
[1721063826405,1.83118722,3403.5,3402.6,2.93887]
[1721063826598,2.542,3403.1,3401.6,2.297]
[1721063826750,9.7414,3403.4,3402.6,2.93889]
[1721063826949,9.7414,3403.4,3402.5,2.939]
[1721063826950,7.3,3403.4,3402.8,2.93874]
[1721063827581,7.3,3403.4,3402.6,2.93888]
[1721063827784,8.03,3403.4,3402.5,2.939]
[1721063828571,3.55,3403.3,3402.2,2.93924]
[1721063828854,2.542,3403.2,3402.3,2.93912]
[1721063829052,3.0,3403.1,3402.3,2.93912]
[1721063830466,3.0,3403.1,3402.4,2.93907]
[1721063830682,3.0,3403.1,3402.5,2.93898]
[1721063831000,3.55,3403.3,3402.5,2.93898]
[1721063831196,4.9622,3403.3,3402.5,2.93898]
[1721063831421,4.9622,3403.3,3402.1,2.93928]
[1721063831721,8.03,3403.4,3402.8,2.93869]
[1721063831722,7.3,3403.4,3402.8,2.93869]
[1721063832008,7.3,3403.4,3402.9,2.93865]
[1721063832197,7.3,3403.4,3402.6,2.93891]
[1721063832514,0.73,3403.3,3402.5,2.939]
[1721063832713,0.73,3403.3,3401.9,5.93945]
[1721063832714,0.73,3403.3,3402.6,2.93892]
[1721063833197,7.3,3403.4,3402.8,2.93874]
[1721063834116,7.3,3403.4,3403.1,2.93846]
[1721063834303,7.3,3403.4,3403.2,2.93839]
[1721063834512,7.3,3403.4,3403.3,2.93832]
[1721063834713,3.0,3404.1,3403.3,2.93832]
[1721063834714,7.3,3404.0,3403.3,2.93832]
[1721063835035,7.6523753,3404.0,3403.3,2.93832]
[1721063835311,7.6523753,3404.0,3403.2,2.93839]
[1721063835724,7.6523753,3404.0,3403.3,2.93831]
[1721063835907,7.6523753,3404.0,3403.4,2.9382]
[1721063836096,7.3,3404.0,3403.4,2.9382]
[1721063836926,7.3,3404.0,3402.6,5.32567]
[1721063836927,2.4119,3403.9,3401.0,6.24843791]
[1721063837129,2.542,3403.1,3401.0,2.4001]
[1721063837309,2.542,3403.1,3402.2,2.9392]
[1721063837310,0.2542,3403.0,3402.2,2.9392]
[1721063837692,2.4284,3402.9,3402.0,2.93938]
[1721063837892,2.9784,3402.9,3401.5,2.93987]
[1721063838131,2.542,3402.3,3401.6,2.93978]
[1721063838330,2.542,3402.7,3401.6,2.93978]
[1721063838639,0.55,3402.6,3401.6,2.93978]
[1721063839034,0.55,3402.6,3401.7,2.93968]
[1721063840053,0.55,3402.6,3401.5,2.93986]
[1721063840217,0.55,3402.6,3401.4,2.93991]
[1721063840548,0.8398537,3402.5,3401.4,2.93991]
[1721063840731,0.55,3402.4,3401.4,2.93991]
[1721063841049,0.55,3402.4,3401.5,2.93987]
[1721063841253,0.55,3402.4,3401.2,2.94012]
[1721063841752,0.55,3402.4,3401.1,2.94019]
[1721063841943,1.04268737,3402.3,3401.1,2.94019]
[1721063842120,0.55,3402.2,3401.2,2.94013]
[1721063842326,0.55,3402.2,3400.7,2.94055]
[1721063842506,0.55,3402.2,3400.3,2.3263]
[1721063842507,0.55,3402.2,3400.8,2.94042]
[1721063842708,3.389,3401.8,3400.6,2.9406]
[1721063842908,0.632851,3401.7,3400.3,2.94088]
[1721063843108,0.632851,3401.7,3400.4,2.94082]
[1721063843109,4.182851,3401.7,3400.4,2.94082]
[1721063843349,10.220631,3401.7,3400.2,2.94099]
[1721063843524,4.182851,3401.7,3399.8,2.4797]
[1721063843719,4.182851,3401.7,3400.6,2.94065]
[1721063843953,1.4871851,3401.6,3400.6,2.94065]
[1721063844255,0.55,3401.5,3400.8,2.94045]
[1721063844455,7.3,3401.9,3401.1,2.94021]
[1721063844655,7.3,3401.9,3401.3,2.94003]
[1721063844860,7.3,3401.9,3401.5,2.93985]
[1721063845070,0.97697,3401.8,3401.2,2.94008]
[1721063845224,7.3,3401.9,3401.3,2.94003]
[1721063845820,7.3,3401.9,3400.9,2.94039]
[1721063846234,7.3,3401.9,3400.4,2.94074]
[1721063846435,3.55,3401.8,3400.4,2.94074]
[1721063846642,3.55,3401.8,3398.9,45.34206]
[1721063846643,6.03778,3401.7,3400.3,2.94089]
[1721063846922,6.03778,3401.7,3400.1,2.94108]
[1721063846923,5.5822,3401.5,3400.1,2.94108]
[1721063847126,5.5822,3401.5,3398.6,2.94237]
[1721063847127,2.94032,3401.0,3399.7,2.94141]
[1721063847661,3.55,3400.9,3399.7,2.94141]
[1721063848373,3.55,3400.9,3398.7,2.4933]
[1721063848374,2.4146,3400.8,3399.6,2.94151]
[1721063848657,4.55426,3400.7,3398.7,2.4933]
[1721063848867,3.098,3400.4,3398.1,2.71327864]
[1721063849104,0.55,3400.3,3399.0,2.94198]
[1721063849307,0.55,3400.3,3398.1,2.2521]
[1721063849308,6.03917,3400.1,3398.7,2.94229]
[1721063849475,6.648,3400.0,3398.7,2.94229]
[1721063849822,2.4522,3399.9,3398.7,2.94229]
[1721063849981,2.4522,3399.9,3399.2,2.9418]
[1721063850489,2.4522,3399.9,3398.9,2.94211]
[1721063850665,2.4522,3399.9,3398.3,2.94256]
[1721063850666,1.15022,3399.8,3399.0,2.94203]
[1721063851099,1.15022,3399.8,3399.1,2.94195]
[1721063851803,1.15022,3399.8,3399.2,2.94185]
[1721063852382,1.15022,3399.8,3399.3,2.94178]
[1721063852587,0.60022,3399.8,3399.3,2.94178]
[1721063852781,2.4522,3399.9,3399.4,2.94169]
[1721063853011,2.4522,3399.9,3399.0,2.94197]
[1721063853317,2.4522,3399.9,3398.6,2.94231]
[1721063853603,2.4522,3399.9,3398.1,8.19483]
[1721063853604,0.55,3399.8,3398.3,2.9426]
[1721063853768,0.55,3399.8,3398.4,3.0]
[1721063853971,1.15022,3399.8,3399.0,2.94196]
[1721063854181,1.15022,3399.8,3398.3,2.9426]
[1721063854182,7.63722,3399.8,3398.3,2.94262]
[1721063854381,7.63722,3399.8,3397.4,7.4]
[1721063854382,10.63722,3399.8,3397.4,7.4]
[1721063854604,10.63722,3399.8,3396.9,2.94382]
[1721063854605,2.4194,3399.1,3398.0,2.94288]
[1721063854999,0.55,3399.0,3398.2,2.94271]
[1721063855214,0.55,3399.0,3397.5,2.94331]
[1721063855215,1.87694,3399.0,3398.0,2.94289]
[1721063855400,4.87694,3399.0,3398.0,2.94289]
[1721063855586,4.87694,3399.0,3397.8,2.94307]
[1721063855775,3.098,3398.9,3397.6,2.94324]